Cogmind - Beta 13 @@@ ROGUE MODE // 2024.04.25 @ 18:15:17 Player: Khoroshiy Result: Destroyed by RI-LJE(z) with Makeshift Shrapnel Gun Performance ------------- Evolutions (1) 500 Regions Visited (4) 800 Robots Destroyed (18) 90 Value Destroyed (565) 565 Prototype IDs (3) 60 Alien Tech Used (0) 0 Bonus (567) 567 TOTAL SCORE: 2582 Bonus ------- Met Imprinter 300 Was Imprinted 300 Friendly Fire -33 Cogmind --------- Core Integrity 0/400 Matter 113/300 Energy 99/100 System Corruption 4% Temperature Cool (0) Movement Core (50) Location -7/Zion Parts ------- > --- POWER (1) -------- (None) > --- PROPULSION (4) --- (None) > --- UTILITY (2) ------ (None) > --- WEAPON (2) ------- (None) > --- INVENTORY (5) ---- System Shield System Shield System Shield System Shield Improved Medium Laser Peak State ------------ > --- POWER ------------ Ion Engine > --- PROPULSION ------- Aluminum Leg Aluminum Leg Aluminum Leg Improved Aluminum Leg > --- UTILITY ---------- Small Storage Unit Phasing AFG > --- WEAPON ----------- Improved Medium Laser Improved Medium Laser > --- INVENTORY -------- Gravmag System System Shield System Shield System Shield System Shield Grenade Launcher Grenade Launcher CR-A16's Pointy Stick [Rating: 28] Favorites ----------- Power Ion Engine Engine Ion Engine Propulsion Aluminum Leg Leg Aluminum Leg Utility Small Storage Unit Device Hacking Drone Bay Storage Small Storage Unit Processor Signal Interpreter Weapon Improved Medium Laser Energy Gun Improved Medium Laser Ballistic Gun Light Assault Rifle Launcher Heavy Missile Launcher Special Weapon Mining Laser Piercing Weapon CR-A16's Pointy Stick Build | -11 -10 -9 -9 -7 ------- Run | Yrd Mat Mat Min Zio Slots Evolved 2 | . . 2 . . Power . | . . . . . Propulsion 2 | . . 2 . . Utility . | . . . . . Weapon . | . . . . . Parts Attached 22 | 6 5 6 . 5 Power 1 | 1 . . . . Engine 1 | 1 . . . . Core . | . . . . . Reactor . | . . . . . Propulsion 5 | 2 . 3 . . Treads . | . . . . . Leg 5 | 2 . 3 . . Wheel . | . . . . . Hover . | . . . . . Flight . | . . . . . Utility 6 | 1 2 1 . 2 Device 3 | . 1 . . 2 Storage 2 | 1 . 1 . . Processor 1 | . 1 . . . Hackware . | . . . . . Protection . | . . . . . Artifact . | . . . . . Weapon 10 | 2 3 2 . 3 Energy Gun 3 | 1 . 2 . . Energy Cannon . | . . . . . Ballistic Gun 2 | 1 1 . . . Ballistic Cannon . | . . . . . Launcher 2 | . . . . 2 Special Weapon 2 | . 2 . . . Impact Weapon . | . . . . . Slashing Weapon . | . . . . . Piercing Weapon 1 | . . . . 1 Special Melee Weapon . | . . . . . Unidentified Prototypes 3 | . . 1 . 2 Parts Lost 13 | . 2 2 . 9 Power 1 | . . . . 1 Propulsion 4 | . . . . 4 Utility 1 | . . 1 . . Weapon 7 | . 2 1 . 4 Highest Loss Streak 8 | . 2 3 . 8 To Critical Strikes . | . . . . . Average Slot Usage (%) 95 | . 97 95 88 95 Engine 11 | . 14 11 11 10 Leg 40 | . 28 42 44 42 Device 9 | . 12 9 . 8 Storage 8 | . 1 7 11 10 Processor 2 | . 12 3 . . Energy Gun 19 | . 14 21 22 21 Ballistic Gun 1 | . 10 . . . Naked Turns 1 | . . . . 1 Heaviest Build 36 | 13 14 17 16 36 Greatest Support 43 | 20 20 43 43 43 Greatest Overweight (x) 4 | 3 . . . 4 Average Overweight (x) . | . . . . . Largest Inventory Capacity 8 | 8 8 8 8 8 Average Capacity 7 | 7 5 7 8 7 Most Carried 8 | 2 5 7 7 8 Average Carried 7 | . 4 6 7 7 Final Capacity 8 | 8 5 8 8 5 Final Carried 7 | 2 5 7 7 5 Class Distribution -------------------- 100% | Mutant Dominant Class ---------------- Mutant | -10/Materials Mutant | -9/Materials Mutant | -9/Mines Mutant | -7/Zion Resources | -11 -10 -9 -9 -7 ----------- Run | Yrd Mat Mat Min Zio Matter Collected 419 | 228 49 100 . 42 Remotely . | . . . . . Salvage Created 391 | . 49 225 . 117 Parts 20 | . 3 8 . 9 Haulers Intercepted . | . . . . . Recyclers Shooed . | . . . . . Parts Field Recycled . | . . . . . Retrieved Matter . | . . . . . Parts Self-Destructed 2 | . . . . 2 Prevented . | . . . . . Kills | -11 -10 -9 -9 -7 ------- Run | Yrd Mat Mat Min Zio Combat Hostiles Destroyed 11 | . 1 5 . 5 Guns 4 | . 1 3 . . AOE 5 | . . . . 5 Classes Destroyed 7 | . 2 3 . 2 Watcher 2 | . 1 1 . . Swarmer 1 | . 1 . . . Grunt 3 | . . 3 . . Brawler 1 | . . 1 . . Sentry 1 | . . 1 . . Zionite 5 | . . . . 5 Mutant 5 | . . . . 5 Best Kill Streak 10 | . 1 2 . 10 Combat Bots Only 5 | . 1 2 . 5 Max Kills in Single Turn 2 | . 1 1 . 2 Gunslinging . | . . . . . Exploded 2 | . . . . 2 Melee . | . . . . . Uniques/NPCs Destroyed . | . . . . . Combat | -11 -10 -9 -9 -7 -------- Run | Yrd Mat Mat Min Zio Hostile Shots Fired 112 | . 26 27 . 59 Missed 18 | . 7 5 . 6 Damage Taken 1516 | . 186 306 . 1024 Core 441 | . 29 68 . 344 Absorbed by Shields . | . . . . . Core Remaining (%) 94 | 100 88 . . . Volleys Fired 52 | . 18 18 . 16 Largest 2 | . 2 2 . 1 Hottest 150 | . 150 112 . 39 Shots Fired 80 | . 28 36 . 16 Gun 56 | . 20 36 . . Cannon . | . . . . . Launcher 16 | . . . . 16 Special 8 | . 8 . . . Kinetic 7 | . 7 . . . Thermal 57 | . 21 36 . . Explosive 16 | . . . . 16 Electromagnetic . | . . . . . Robot Hit Streak 7 | . 7 7 . 6 Robot Miss Streak 6 | . 6 3 . 1 Penetration Max . | . . . . . Secondary Targets 1 | . . 1 . . Max Gunslinging Chain 1 | . . 1 . . Shots Hit Robots 46 | . 11 22 . 13 Core Hits 31 | . 2 6 . 23 Critical Kills . | . . . . . Critical Parts Destroyed . | . . . . . Critical Strikes 2 | . . 2 . . Burn 2 | . . 2 . . Melee Attacks 3 | . . . . 3 Impact . | . . . . . Slashing . | . . . . . Piercing 3 | . . . . 3 Sneak Attacks . | . . . . . Combat Hostiles . | . . . . . Follow-up Attacks . | . . . . . Damage Inflicted 2278 | . 154 372 . 1752 Guns 478 | . 106 372 . . Cannons . | . . . . . Explosions 1630 | . . . . 1630 Melee 122 | . . . . 122 Ramming . | . . . . . Kinetic 17 | . 17 . . . Thermal 509 | . 137 372 . . Explosive 1630 | . . . . 1630 Electromagnetic . | . . . . . Impact . | . . . . . Slashing . | . . . . . Piercing 122 | . . . . 122 Highest Corruption 4 | . . . . 4 Average Corruption 1 | . . . . 1 Corruption Purged . | . . . . . Corruption Blocked . | . . . . . Overload Shots . | . . . . . Overflow Damage 47 | . . . . 47 Projectiles . | . . . . . Explosions 47 | . . . . 47 Melee . | . . . . . Knockbacks . | . . . . . Impact . | . . . . . Kinetic . | . . . . . Secondary . | . . . . . Self-Inflicted Damage 255 | . . . . 255 Shots 10 | . . . . 10 Rammed . | . . . . . Targets Rammed . | . . . . . Kicked . | . . . . . Crushed . | . . . . . Highest Temperature 305 | . 150 305 . 167 Average Temperature 79 | . 37 107 . 101 Received Heat Transfer 598 | . 57 111 . 430 Siege Activations . | . . . . . Robots Corrupted . | . . . . . Combat Hostiles . | . . . . . Parts Fried . | . . . . . Impact Corruptions . | . . . . . Robots Melted 2 | . . 2 . . Combat Hostiles 2 | . . 2 . . Parts Melted 7 | . . 7 . . Heat Transferred 1321 | . 359 962 . . Parts Sabotaged . | . . . . . Parts Stolen . | . . . . . Parts Stripped . | . . . . . Power Chain Reactions . | . . . . . Alert | -11 -10 -9 -9 -7 ------- Run | Yrd Mat Mat Min Zio Peak Influence 209 | . 144 209 9 . Initial 52 | . . 52 9 . Average 47 | . 17 114 9 . Maximum Alert Level 1 | . . 1 . . Low Security (%) 97 | 100 100 92 100 . Level 1 2 | . . 7 . . Level 2 . | . . . . . Level 3 . | . . . . . Level 4 . | . . . . . Level 5 . | . . . . . High Security . | . . . . . Max Security . | . . . . . Squads Dispatched 4 | . 2 2 . . Investigation . | . . . . . Extermination . | . . . . . Reinforcement 4 | . 2 2 . . Assault . | . . . . . Garrison . | . . . . . Intercept . | . . . . . Searches Triggered . | . . . . . Construction Impeded . | . . . . . Haulers Reinforced . | . . . . . Active Scanning Responses . | . . . . . Cargo Convoy Interrupts . | . . . . . Stealth | -11 -10 -9 -9 -7 --------- Run | Yrd Mat Mat Min Zio Distress Signals 3 | . 2 1 . . Communications Jammed . | . . . . . Distress Signals . | . . . . . Times Spotted 47 | . 12 9 . 26 Peak Tracking Total 11 | . 5 4 . 11 Tactical Retreats 5 | . 1 1 . 3 Traps | -11 -10 -9 -9 -7 ------- Run | Yrd Mat Mat Min Zio Traps Triggered . | . . . . . Indirectly . | . . . . . Trap Hack Attempts . | . . . . . Triggered . | . . . . . Disarmed . | . . . . . Reprogrammed . | . . . . . Reused . | . . . . . Traps Extracted . | . . . . . Installed . | . . . . . Triggered . | . . . . . Machines | -11 -10 -9 -9 -7 ---------- Run | Yrd Mat Mat Min Zio Machines Disabled 1 | . . . . 1 Max in Single Turn 1 | . . . . 1 Machines Repaired . | . . . . . Machines Dismantled . | . . . . . Machines Sabotaged . | . . . . . Overloaded Fab Kills . | . . . . . Hacking | -11 -10 -9 -9 -7 --------- Run | Yrd Mat Mat Min Zio Machines Accessed 8 | . 5 2 . 1 Terminals 6 | . 4 2 . . Fabricators . | . . . . . Repair Stations . | . . . . . Recycling Units 1 | . 1 . . . Scanalyzers . | . . . . . Garrison Access . | . . . . . Total Hacks 24 | . 14 5 . 5 Successful 17 | . 9 3 . 5 Failed 7 | . 5 2 . . Catastrophic . | . . . . . Database Lockouts . | . . . . . Manual 7 | . . . . 7 Terminals 18 | . 13 5 . . Fabricators . | . . . . . Repair Stations . | . . . . . Recycling Units 1 | . 1 . . . Scanalyzers . | . . . . . Garrison Access . | . . . . . Terminal Hacks 16 | . 8 3 . 5 Part Schematic 5 | . . . . 5 Branch Access Points 1 | . 1 . . . Emergency Access Points 1 | . 1 . . . Terminal Index 1 | . . 1 . . Alert Level 2 | . 1 1 . . Locate Traps 2 | . 2 . . . Hauler Manifests 1 | . 1 . . . Zone Layout 3 | . 2 1 . . Fabricator Hacks . | . . . . . Repair Station Hacks . | . . . . . Recycling Unit Hacks 1 | . 1 . . . Report Inventory 1 | . 1 . . . Scanalyzer . | . . . . . Garrison Access Hacks . | . . . . . Unauthorized Hacks . | . . . . . Terminals . | . . . . . Fabricators . | . . . . . Repair Stations . | . . . . . Recycling Units . | . . . . . Scanalyzers . | . . . . . Garrison Access . | . . . . . Data Cores Recovered . | . . . . . Used . | . . . . . Hacking Detections 4 | . 3 1 . . Full Trace Events . | . . . . . Feedback Events . | . . . . . Feedback Blocked . | . . . . . Robot Schematics Acquired . | . . . . . Robots Built . | . . . . . Authchips . | . . . . . Time . | . . . . . Total Robot Build Rating . | . . . . . Part Schematics Acquired 5 | . . . . 5 Parts Built . | . . . . . Authchips . | . . . . . Time . | . . . . . Total Part Build Rating . | . . . . . Parts Repaired . | . . . . . Time . | . . . . . Parts Recycled . | . . . . . Recycled Matter . | . . . . . Retrieved Matter . | . . . . . Retrieved Components . | . . . . . Parts Scanalyzed . | . . . . . Part Schematics Acquired . | . . . . . Parts Damaged . | . . . . . Bothacking | -11 -10 -9 -9 -7 ------------ Run | Yrd Mat Mat Min Zio Used RIF Installer . | . . . . . Robots Hacked . | . . . . . Non-combat . | . . . . . Combat . | . . . . . Robot Hacks Applied . | . . . . . Relay Couplers Released . | . . . . . Fabnet Peak Effective % . | . . . . . Robots Rewired . | . . . . . Allies Hacked . | . . . . . Hacks Repelled . | . . . . . Allies | -11 -10 -9 -9 -7 -------- Run | Yrd Mat Mat Min Zio Total Allies 4 | . . . . 4 Largest Group 4 | . . . . 4 Highest-Rated Group 154 | . . . . 154 Highest-Rated Ally 40 | . . . . 40 Total Orders . | . . . . . Ally Attacks . | . . . . . Total Damage . | . . . . . Kills . | . . . . . Allies Corrupted . | . . . . . Allies Melted . | . . . . . Intel | -11 -10 -9 -9 -7 ------- Run | Yrd Mat Mat Min Zio Robot Analysis Total . | . . . . . Derelict Logs Recovered 3 | . . . 1 2 Drone Launches 1 | . . . . 1 Drone Recoveries 1 | . . . . 1 Exploration | -11 -10 -9 -9 -7 ------------- Run | Yrd Mat Mat Min Zio Turns Passed 3756 | 85 656 412 92 2511 Spaces Moved 2773 | 56 407 205 75 2030 Core 74 | 10 . . . 64 Treads . | . . . . . Legs 2699 | 46 407 205 75 1966 Wheels . | . . . . . Hover . | . . . . . Flight . | . . . . . Fastest Speed 50 | 50 120 120 120 50 Average Speed 118 | 134 120 120 120 117 Slowest Speed 250 | 200 120 120 120 250 Overloaded Moves . | . . . . . Propulsion Burnouts . | . . . . . Robots Hopped 1 | . . . . 1 Cave-ins Triggered . | . . . . . Exploration Rate (%) 41 | 4 72 22 17 91 Regions Visited 4 Branch Regions 2 Pre-discovered Areas 4 | . . . 1 3 Known Exits Taken 1 | . 1 . . . Unknown Exits Taken 3 | 1 . 1 1 . Scrap Searched 2 | . . . . 2 Spaces Dug 6 | . 6 . . . Terrain Destroyed 30 | . 6 . . 24 Melee . | . . . . . Projectile 6 | . 6 . . . AOE 24 | . . . . 24 Terrain Rammed . | . . . . . Walls Destroyed . | . . . . . Machines Disabled . | . . . . . Actions | -11 -10 -9 -9 -7 --------- Run | Yrd Mat Mat Min Zio Total 3125 | 63 530 333 77 2122 Wait 250 | . 94 97 3 56 Move 2767 | 55 406 204 74 2028 Hop 1 | . . . . 1 Pick Up 16 | 2 5 4 . 5 Fast Attach 15 | 6 1 6 . 2 Attach 3 | . . 1 . 2 Detach . | . . . . . Swap 5 | . 4 . . 1 Drop 13 | . 2 3 . 8 Fire 52 | . 18 18 . 16 Melee 3 | . . . . 3 Ram . | . . . . . Kick . | . . . . . Crush . | . . . . . Escape Stasis . | . . . . . Rewire . | . . . . . Trap . | . . . . . Miscellaneous . | . . . . . Route ------- -11/Scrapyard -10/Materials (discovered 3 exits: *Mat x2 / *Min) -9/Materials (discovered 2 exits: [*Min] / [*Sto]) -9/Mines -7/Zion (discovered 1 exit: [*Pro]) History --------- Turn | Location | Event 51 | -11/Scrapyard | Discovered new exit (range 16) 86 | -11/Scrapyard | Entered Materials 245 | -10/Materials | Discovered new exit (range 16) 276 | -10/Materials | Identified exit to Mines 314 | -10/Materials | Build established: Mutant 486 | -10/Materials | Discovered new exit (range 20) 486 | -10/Materials | Discovered new exit (range 20) 520 | -10/Materials | Identified exit to Materials 742 | -10/Materials | Entered another Materials area 742 | -9/Materials | Evolved 2 slots: Propulsion x2 785 | -9/Materials | Lost 3 parts (3w) 1087 | -9/Materials | Discovered new exit (range 8) 1145 | -9/Materials | Discovered new exit (range 6) 1154 | -9/Materials | Entered Mines 1171 | -9/Mines | Learned location of Storage (-9) 1212 | -9/Mines | Learned Materials security intel 1238 | -9/Mines | A Derelict revealed a hidden shortcut to a safe place 1246 | -9/Mines | Entered Zion 1269 | -7/Zion | Found CR-A16's Pointy Stick 1288 | -7/Zion | Discovered new exit (range 15) 1425 | -7/Zion | Learned Factory stockpile data 1439 | -7/Zion | Learned Factory terminal intel 1526 | -7/Zion | Imprinted 1529 | -7/Zion | Declared Zion's savior 1718 | -7/Zion | Found Prototype Device 1718 | -7/Zion | Identified Phasing AFG 2084 | -7/Zion | Given the Hacking Drone Bay 2087 | -7/Zion | Found Prototype Device 2087 | -7/Zion | Identified Hacking Drone Bay 2644 | -7/Zion | Learned location of Warlord (-5) 3669 | -7/Zion | Attacked by Zionites 3685 | -7/Zion | Core integrity fell below 50% 3740 | -7/Zion | Core integrity fell below 20% 3745 | -7/Zion | Lost 8 parts (1p4n3w) 3757 | -7/Zion | Destroyed by RI-LJE(z) with Makeshift Shrapnel Gun Last Messages --------------- 4K-J1Q(z) pulls a Mak. Laser out of the Twisted Machinery. BN-VZI(z) pulls a Mak. Hammer out of the Twisted Machinery. BG-10G(z) emerges from the Twisted Machinery. Knocked back. C2-0M3(c) calibrates the Prototype Hold. NP-MJK(z) pulls a Mak. Axe out of the Twisted Machinery. C2-0M3(c) calibrates the Prototype Hold. NU-CCO(z) bursts out of the Twisted Machinery. NU-CCO(z) pulls a Mak. Axe out of the Twisted Machinery. YE-D46(z) pulls a Mak. Hammer out of the Twisted Machinery. CU-U23(z) pulls a Mak. Laser out of the Twisted Machinery. Acquired 22 matter. CR-A16's Pointy Stick destroyed. System corrupted by crushing effect (+3). Map ----- +----------------------------------------------------+ | ????##"" " #?????????????????????????????????????? | | ????#" #?????????????????????????????????????? | | ????#"" ""#?????????????????????????????????????? | | ????#### ##???####??????????????????????????????? | | ????# ####"#"########???????????????????????? | | ???## #""#""##"##"""???????????????????????? | | ?###" " " """"#"""""""###?####??#####????????? | | ##"""""""" """" """""###""####"""#????????? | | """""" "#"" ""#""""##"""&"#????????? | | """ """" """""""""" & ###??????? | | "#"" ###????? | | #""" #????? | | """" """"" ##????? | | "" ##"" """""" ##????? | | """"" ##"" """""" "" #????? | | ""##"" "##" """"" """""#????? | | """"" """" """ """##???? | | """" """ """ """#???? | | "" "" ""##???? | | """ """ "" l """ ""##????? | | """""""" """ "" """ """ ""#"#????? | | "###"""" """"" "z" """" "#"##????? | | """"""""" z """"" """""""" """"#????? | | #"" """##???? | | ##"""" """#???? | | !z@ #""""" ""#???? | | """""#"#""" """"""##" z""""" "##???? | | """"""""""" """"""""" """" "" """#???? | | """#""##""" """"####"I """""" """ ""##???? | | "########""" ""####""" """"""""""" ""###??? | | ##??????###"""""""##??##"" #z """"""" """"#??? | | ??????????#""####"#????#"" #" """" ""##??? | | ??????????####???##????#"" "" "" "##???? | | ?????????????????????###" """#???? | | ??????????????????####""" "" ""##???? | | ??????????????##### """ """""" ""#???? | | ??????????????# # #"" """""" ""##???? | | ?????????????##]]" #"" ""#""" ""#?#### | | ?????????????#] "" """#"" ""##?# " | | ?????????????## " #" ""#""" """##??# | | ??????????????#]]## # ""#"" """""#### | | ??????????????######## """" """""""# | | ????????????????????# "" | | ????????????????????#### """ "" | | ???????????????????????# """ """""""""""# | | ??????????????????????## """ """#""""""#### | | ??????????????????????#"# """"""""##"#?# | | ??????????????????????##"" "###?##?# " | | ?????????????????????####" """"" ""#?????#### | | ?????????????????????#"""" "#""" ""#????????? | +----------------------------------------------------+ Best States ------------- Heat Dissipation 28 Energy Generation 10 Energy Capacity 250 Matter Stores 300 Matter Capacity 300 Sight Range 16 Robot Scan Range 14 Terrain Scan Density 10 Evasion (%) 55 Item Schematics ----------------- Hvy. Riot Gun | -7/Zion | Free Battle Rifle | -7/Zion | Free Battle Cannon | -7/Zion | Free Ripper | -7/Zion | Free Tactical Coordination Suite | -7/Zion | Free Robot Schematics ------------------ None Fabricated ------------ Nothing Alien Tech Used ----------------- None Achievements -------------- None Challenges ------------ None Game ------ Seed MultitargetingBarrageMallet Manual? 0 Play Time 00:29:08 Cumulative 11.4 hours Start 2024.04.25 @ 17:47:50 End 2024.04.25 @ 18:15:17 Sessions 1 Manual Loads 0 Difficulty Rogue Special Mode None Game No. 12 Rogue 12 Adventurer 0 Explorer 0 Win Type - Total 0 Types 0/0/0/0/0/0/0/0/0 Lore% 23 Gallery% 18 Achievement% 22 Wizard Run 0 Options --------- Layout 1 ASCII 0 Keyboard 0 Movement Arrows Keybinds 0 Fullscreen 1 Font 24/Smallcaps Map View 50x35 Zoom Use 0% Tactical HUD 0 Map Filters NONE Filters NONE Steam 0 RUN: cc00a66b-2659-4511-9a22-6dfd61fa8cce